bitfinex-derivatives/quotes_SOLF0:USTF0_20251216
["timestamp","ask_amount","ask_price","bid_price","bid_amount"]
[1765848489716,0.48,125.69,125.64,4.74435834]
[1765848490017,2.67156881,125.66,125.61,3.36]
[1765848490208,3.15156881,125.66,125.61,3.36]
[1765848490408,0.48,125.66,125.62,3.36]
[1765848490609,0.48,125.66,125.6,3.36]
[1765848490914,0.53332634,125.64,125.61,3.36]
[1765848491119,7.69752634,125.64,125.61,3.36]
[1765848491518,0.53332634,125.64,125.61,3.36]
[1765848492218,0.05332634,125.64,125.62,3.36]
[1765848493209,7.69752634,125.64,125.6,3.36]
[1765848493723,0.05332634,125.64,125.61,3.36]
[1765848494131,0.05332634,125.64,125.63,3.36]
[1765848502443,0.53332634,125.64,125.61,3.36]
[1765848502941,0.48,125.63,125.59,3.36]
[1765848503150,0.05332634,125.64,125.55,179.1385]
[1765848503151,2.67156881,125.61,125.55,3.36]
[1765848503330,0.0519428,125.59,125.56,3.36]
[1765848503938,0.0519428,125.59,125.57,3.36]
[1765848504139,0.5319428,125.59,125.56,3.36]
[1765848504942,0.0519428,125.59,125.56,3.36]
[1765848505937,0.0519428,125.59,125.57,10.5281]
[1765848506249,0.0519428,125.59,125.57,3.36]
[1765848506942,0.0019428,125.59,125.58,3.36]
[1765848508648,0.0019428,125.59,125.57,3.418716]
[1765848509040,0.0019428,125.59,125.57,10.586816]
[1765848509041,0.5319428,125.59,125.57,10.586816]
[1765848509343,0.5319428,125.59,125.57,0.058716]
[1765848509949,0.0019428,125.59,125.57,3.418716]
[1765848512238,0.0019428,125.59,125.58,3.32]
[1765848513044,0.0019428,125.59,125.58,7.1676]
[1765848513547,0.0019428,125.59,125.58,9.83916881]
[1765848514147,0.0019428,125.59,125.57,0.058716]
[1765848514540,0.0019428,125.59,125.58,3.32]
[1765848515545,0.0019428,125.59,125.57,0.058716]
[1765848515746,0.54,125.58,125.57,0.058716]
[1765848516044,0.54,125.58,125.5,7.40947904]
[1765848516045,111.5038,125.58,125.5,7.40947904]
[1765848516247,4.18269198,125.57,125.51,3.32]
[1765848516444,4.72269198,125.57,125.51,3.32]
[1765848516647,7.7089,125.56,125.51,3.32]
[1765848516945,0.54,125.55,125.51,3.32]
[1765848517151,0.06016738,125.54,125.51,3.32]
[1765848520950,0.06016738,125.54,125.51,10.4914]
[1765848521252,0.06016738,125.54,125.51,3.32]
[1765848531856,0.06016738,125.54,125.51,10.4914]
[1765848532159,0.06016738,125.54,125.52,3.32]
[1765848533357,0.00016738,125.54,125.53,3.32]
[1765848536674,0.00016738,125.54,125.52,3.37494118]
[1765848539662,0.00016738,125.54,125.52,10.54594118]
[1765848539862,0.00016738,125.54,125.53,3.32]
[1765848541570,0.00016738,125.54,125.53,10.4904]
[1765848543268,0.00016738,125.54,125.53,3.32]
[1765848544771,7.167,125.59,125.54,3.39]
[1765848545267,0.6,125.6,125.54,3.39]
[1765848545471,0.6,125.59,125.54,3.39]
[1765848545861,7.7682,125.57,125.55,3.44919644]
[1765848546769,7.7687,125.56,125.55,0.05919644]
[1765848547165,13.55548529,125.56,125.55,0.05919644]
[1765848547366,0.6,125.55,125.51,3.39]
[1765848548366,0.05301662,125.54,125.51,3.39]
[1765848549870,0.05301662,125.54,125.52,3.39]
[1765848551470,0.00301662,125.54,125.53,10.5604]
[1765848551676,0.00301662,125.54,125.53,14.74718529]
[1765848552065,0.00301662,125.54,125.53,16.34718529]
[1765848558776,0.00301662,125.54,125.53,14.74718529]
[1765848558982,0.00301662,125.54,125.53,16.34718529]
[1765848560280,0.00301662,125.54,125.53,14.74718529]
[1765848561186,0.00301662,125.54,125.53,55.74718529]
[1765848561384,0.00301662,125.54,125.53,78.2604]
[1765848562194,0.00301662,125.54,125.53,82.44718529]
[1765848562386,0.00301662,125.54,125.53,78.2604]
[1765848564096,0.00301662,125.54,125.52,10.61197094]
[1765848564396,0.00301662,125.54,125.53,3.39]
[1765848565895,0.00301662,125.54,125.53,10.5604]
[1765848566702,0.00301662,125.54,125.53,78.2604]
[1765848567597,0.00301662,125.54,125.53,67.7]
[1765848569900,0.00301662,125.54,125.53,3.39]
[1765848572799,0.00301662,125.54,125.53,10.5604]
[1765848578715,0.00301662,125.54,125.53,13.2396252]
[1765848580414,0.00301662,125.54,125.53,10.5604]
[1765848584515,0.00301662,125.54,125.53,78.2604]
[1765848597932,0.00301662,125.54,125.53,10.5604]
[1765848598227,0.00301662,125.54,125.53,13.23892369]
[1765848600736,0.65,125.6,125.57,10.5778]
[1765848600927,0.65,125.61,125.58,3.41]
[1765848601630,0.65,125.61,125.58,10.5775]
[1765848601834,0.70205589,125.61,125.58,10.63075979]
[1765848602028,0.70205589,125.61,125.58,3.46325979]
[1765848602534,0.70205589,125.61,125.58,0.05325979]
[1765848602725,0.65,125.6,125.58,0.05325979]
[1765848604136,0.65,125.6,125.58,3.22325979]
[1765848604440,0.70205589,125.61,125.59,10.3364]
[1765848605037,0.70205589,125.61,125.58,7.22075979]
[1765848605945,0.70205589,125.61,125.59,7.167]
[1765848606945,0.05205589,125.61,125.6,13.01492369]
[1765848607932,0.05205589,125.61,125.6,10.3364]
[1765848608535,0.05205589,125.61,125.6,7.1664]
[1765848608832,0.05205589,125.61,125.6,10.3364]
[1765848609337,0.70205589,125.61,125.58,74.92025979]
[1765848609540,0.70205589,125.61,125.58,7.22025979]
[1765848610246,0.70205589,125.61,125.58,10.39025979]
[1765848610435,0.05205589,125.61,125.59,10.3369]
[1765848612639,0.05205589,125.61,125.6,3.17]
[1765848612842,0.05205589,125.61,125.6,10.3364]
[1765848613039,0.05205589,125.61,125.6,13.01492369]
[1765848613243,0.65,125.65,125.61,3.17]
[1765848614444,0.05118746,125.64,125.62,3.22265881]
[1765848615144,0.05118746,125.64,125.62,10.38775881]
[1765848615342,0.70118746,125.64,125.62,10.38775881]
[1765848617448,0.05118746,125.64,125.62,10.38775881]
[1765848617639,0.05118746,125.64,125.63,7.1647]
[1765848619047,0.05118746,125.64,125.62,10.38745881]
[1765848620146,0.05118746,125.64,125.63,7.1647]
[1765848622346,0.70118746,125.64,125.62,0.05265881]
[1765848622552,0.70118746,125.64,125.62,3.22265881]
[1765848624046,0.70118746,125.64,125.62,10.38775881]
[1765848624854,0.65,125.63,125.62,0.05265881]
[1765848625956,0.70118746,125.64,125.62,3.22265881]
[1765848626450,0.65,125.68,125.62,3.22265881]
[1765848626746,3.32852369,125.67,125.62,3.22265881]
[1765848626952,7.8119,125.68,125.65,3.17]
[1765848627148,0.65,125.68,125.65,3.17]
[1765848627549,0.70478328,125.68,125.66,3.17]
[1765848627750,0.05478328,125.68,125.66,3.17]
[1765848628850,0.05478328,125.68,125.66,10.3327]
[1765848629155,0.05478328,125.68,125.67,3.17]
[1765848629358,0.65,125.7,125.67,3.17]
[1765848629755,3.32852369,125.71,125.67,3.17]
[1765848630351,0.05804248,125.7,125.68,3.23051051]
[1765848630548,0.05804248,125.7,125.69,3.17]
[1765848631049,0.05804248,125.7,125.68,10.39221051]
[1765848631358,0.05804248,125.7,125.68,3.23051051]
[1765848632160,0.05804248,125.7,125.68,10.39231051]
[1765848632561,0.05804248,125.7,125.69,3.17]
[1765848634068,0.05804248,125.7,125.68,7.22231051]
[1765848634766,0.05804248,125.7,125.68,10.39231051]
[1765848635257,0.70804248,125.7,125.68,0.06051051]
[1765848637367,0.70804248,125.7,125.62,4.17716838]
[1765848637368,0.65,125.69,125.62,3.17]
[1765848637661,0.65,125.69,125.59,3.17]
[1765848637662,0.59,125.65,125.59,3.17]
[1765848638069,7.7539,125.65,125.61,10.3358]
[1765848638256,7.1639,125.65,125.62,3.17]
[1765848638461,0.05922381,125.65,125.62,3.22475551]
[1765848639765,0.05922381,125.65,125.63,3.17]
[1765848645361,0.05922381,125.65,125.63,10.3343]
[1765848645555,0.05922381,125.65,125.64,3.17]
[1765848648066,0.05922381,125.65,125.64,10.3341]
[1765848653776,0.65,125.71,125.68,3.17]
[1765848654667,0.70871516,125.71,125.68,3.22033961]
[1765848656175,7.86901516,125.71,125.68,3.22033961]
[1765848659086,7.86901516,125.71,125.68,10.38213961]
[1765848659384,7.86901516,125.71,125.68,3.22033961]
[1765848660381,0.05871516,125.71,125.69,3.17]
[1765848661985,0.05871516,125.71,125.7,3.17]
[1765848662889,0.05871516,125.71,125.69,3.29]
[1765848663280,0.70871516,125.71,125.69,3.29]
[1765848663885,7.86891516,125.71,125.69,3.29]
[1765848665392,0.6,125.66,125.61,3.29]
[1765848665585,0.6,125.64,125.58,3.29]
[1765848665888,7.1656,125.62,125.58,3.29]
[1765848666277,0.6,125.61,125.58,3.29]
[1765848666481,0.6,125.61,125.55,3.29]
[1765848666482,7.767,125.6,125.55,3.29]
[1765848666686,0.6,125.59,125.58,0.05346688]
[1765848666893,0.6,125.58,125.52,3.29]
[1765848667992,0.05309862,125.56,125.54,3.34193779]
[1765848668183,0.00309862,125.56,125.54,3.34193779]
[1765848668700,0.00309862,125.56,125.55,3.29]
[1765848670496,7.1655,125.62,125.57,3.29]
[1765848671395,7.8155,125.62,125.57,3.29]
[1765848671702,0.65,125.67,125.6,3.29]
[1765848671884,111.3954,125.7,125.6,3.29]
[1765848672090,0.7,125.7,125.63,3.29]
[1765848672593,0.7521599,125.68,125.65,0.05271081]
[1765848673494,7.8626,125.67,125.65,0.05271081]
[1765848676401,0.0521599,125.68,125.65,3.34271081]
[1765848676798,0.7,125.65,125.58,3.29]
[1765848677001,0.7,125.63,125.56,7.1683]
[1765848677201,0.7,125.63,125.56,3.29]
[1765848677703,0.05511322,125.61,125.58,0.05388458]
[1765848678401,0.05511322,125.61,125.58,3.34388458]
[1765848679108,0.05511322,125.61,125.6,3.29]
[1765848686003,67.6,125.65,125.62,3.29]
[1765848686200,0.76,125.69,125.62,3.29]
[1765848686605,0.76,125.69,125.64,3.29]
[1765848687109,0.05946212,125.68,125.66,3.29]
[1765848687612,0.76,125.75,125.66,3.29]
[1765848687813,0.82,125.74,125.66,3.29]
[1765848688608,0.05018942,125.71,125.69,3.35064762]
[1765848691404,0.05018942,125.71,125.7,3.2]
[1765848694421,0.00018942,125.71,125.7,3.2]
[1765848696714,0.00018942,125.71,125.69,10.59174762]
[1765848697225,0.87018942,125.71,125.69,0.06064762]
[1765848699112,0.00018942,125.71,125.69,0.06064762]
[1765848699410,0.00018942,125.71,125.69,3.43064762]
[1765848700019,0.00018942,125.71,125.7,3.37]
[1765848705728,0.00018942,125.71,125.7,10.5307]
[1765848705930,0.00018942,125.71,125.7,7.1607]
[1765848706328,0.00018942,125.71,125.7,10.5307]
[1765848707217,0.00018942,125.71,125.7,3.37]
[1765848710029,0.00018942,125.71,125.7,7.1607]
[1765848712535,8.0262,125.78,125.74,7.1584]
[1765848712736,8.0262,125.78,125.75,3.37]
[1765848712938,0.87,125.77,125.74,10.5284]
[1765848713137,8.0268,125.77,125.74,3.37]
[1765848713635,8.07944985,125.77,125.74,3.42793169]
[1765848714536,0.87,125.76,125.74,0.05793169]
[1765848714935,8.0279,125.75,125.74,0.05793169]
[1765848718934,8.0292,125.73,125.7,3.37]
[1765848719432,7.1592,125.73,125.7,3.37]
[1765848719630,0.87,125.74,125.71,3.37]
[1765848719830,0.92503636,125.74,125.71,3.42523593]
[1765848720634,7.21353636,125.74,125.71,3.42523593]
[1765848720833,0.05503636,125.74,125.71,3.42523593]
[1765848721435,0.05503636,125.74,125.73,10.529]
[1765848721743,0.05503636,125.74,125.73,3.37]
[1765848723637,8.0765,125.78,125.74,3.09]
[1765848724235,7.1554,125.8,125.76,3.09]
[1765848724641,0.05979079,125.79,125.77,3.14479777]
[1765848727042,0.05979079,125.79,125.78,3.09]
[1765848728637,0.05979079,125.79,125.78,10.2462]
[1765848730242,0.92,125.85,125.81,3.09]
[1765848730444,0.98,125.88,125.82,3.09]
[1765848730645,6.08642441,125.87,125.82,3.09]
[1765848730832,0.98,125.86,125.82,3.09]
[1765848731238,0.06030953,125.85,125.83,3.14483423]
[1765848732549,0.06030953,125.85,125.84,3.09]
[1765848733048,8.19250953,125.85,125.83,0.05483423]
[1765848733435,0.98,125.84,125.83,0.05483423]
[1765848735350,0.98,125.82,125.75,3.09]
[1765848735646,7.04559075,125.81,125.75,10.2478]
[1765848735844,0.98,125.81,125.75,10.2478]
[1765848736050,112.2488,125.84,125.76,3.09]
[1765848736246,0.06035102,125.81,125.79,0.05957215]
[1765848736446,0.06035102,125.81,125.8,3.09]
[1765848736655,68.52,125.86,125.8,3.09]
[1765848736854,68.52,125.86,125.82,7.1537]
[1765848737146,1.04,125.87,125.83,3.09]
[1765848737354,67.54,125.9,125.83,3.09]
[1765848737543,0.05045983,125.88,125.87,3.09]
[1765848740351,0.00045983,125.88,125.87,3.09]
[1765848741144,0.00045983,125.88,125.86,3.14905226]
[1765848742848,0.00045983,125.88,125.86,10.30055226]
[1765848743050,0.00045983,125.88,125.87,3.09]
[1765848746758,296.09,125.96,125.9,3.09]
[1765848746949,1.09,125.96,125.9,3.09]
[1765848747361,1.09,125.93,125.87,10.2408]
[1765848747653,1.09,125.93,125.89,0.05755692]
[1765848747856,0.05036849,125.91,125.89,0.05755692]
[1765848748058,1.09,125.9,125.89,0.05755692]
[1765848748355,1.09,125.9,125.84,3.09]
[1765848748857,1.03,125.87,125.81,3.09]
[1765848749157,1.03,125.9,125.83,3.09]
[1765848749559,1.03,125.9,125.86,3.09]
[1765848749560,0.05598346,125.88,125.86,3.09]
[1765848752873,7.20648346,125.88,125.86,3.09]
[1765848753072,7.20648346,125.88,125.85,3.36227456]
[1765848753773,7.1511,125.87,125.85,3.36227456]
[1765848754173,7.1511,125.87,125.85,0.05227456]
[1765848755476,1.08598346,125.88,125.85,3.36227456]
[1765848755676,0.05598346,125.88,125.85,3.36227456]
[1765848756573,75.6776,125.94,125.87,3.31]
[1765848757480,75.6776,125.94,125.86,111.2416]
[1765848757481,7.1478,125.93,125.9,3.31]
[1765848757874,7.19850465,125.93,125.9,3.36086173]
[1765848758183,7.1482,125.92,125.9,3.36086173]
[1765848758569,0.05070465,125.93,125.9,3.36086173]
[1765848759970,0.00070465,125.93,125.9,3.36086173]
[1765848760376,0.00070465,125.93,125.91,3.31]
[1765848761879,0.00070465,125.93,125.91,10.4587]
[1765848762073,0.00070465,125.93,125.91,3.31]
[1765848768678,0.00070465,125.93,125.92,3.31]
[1765848769377,0.00070465,125.93,125.92,7.1482]
[1765848769576,7.1446,125.99,125.91,111.2015]
[1765848770085,7.1446,125.99,125.92,3.31]
[1765848770384,7.1446,125.99,125.91,111.2015]
[1765848770385,8.2746,125.99,125.95,3.31]
[1765848770585,7.20529399,125.98,125.96,0.05922493]
[1765848771790,7.20529399,125.98,125.96,3.36922493]
[1765848774300,0.06029399,125.98,125.96,3.36922493]
[1765848776295,1.19,126.06,125.97,3.31]
[1765848776490,7.1419,126.04,125.98,7.1443]
[1765848776696,1.19,126.04,125.99,3.31]
[1765848776893,7.24323265,126.03,125.99,3.31]
[1765848777191,0.05522361,126.02,126.0,0.05607317]
[1765848777394,7.1431,126.01,126.0,0.05607317]
[1765848777697,0.05522361,126.02,126.0,3.36607317]
[1765848777995,0.05522361,126.02,126.0,10.50967317]
[1765848778197,0.05522361,126.02,126.01,3.31]
[1765848780891,118.28152552,126.13,126.04,3.31]
[1765848781104,7.26572552,126.18,126.11,3.31]
[1765848781290,3.15,126.19,126.12,10.4465]
[1765848781487,3.15,126.19,126.13,3.31]
[1765848781887,0.06119765,126.17,126.15,0.05299976]
[1765848782095,0.06119765,126.17,126.15,3.26299976]
[1765848783896,0.06119765,126.17,126.15,10.39789976]
[1765848784099,0.06119765,126.17,126.16,3.21]
[1765848784694,0.06119765,126.17,126.15,0.05299976]
[1765848784999,3.40119765,126.17,126.15,0.05299976]
[1765848785296,10.53549765,126.17,126.15,0.05299976]
[1765848789991,3.34,126.16,126.15,0.05299976]
[1765848791001,0.06119765,126.17,126.15,3.26299976]
[1765848792492,3.40119765,126.17,126.15,0.05299976]
[1765848792695,0.06119765,126.17,126.15,0.05299976]
[1765848795498,0.06119765,126.17,126.15,3.26299976]
[1765848798606,10.53539765,126.17,126.15,0.05299976]
[1765848798998,7.19539765,126.17,126.15,0.05299976]
[1765848800808,3.34,126.16,126.15,0.05299976]
[1765848801698,7.19539765,126.17,126.15,0.05299976]
[1765848802301,10.53539765,126.17,126.15,0.05299976]
[1765848802696,7.19539765,126.17,126.15,0.05299976]
[1765848803101,0.06119765,126.17,126.15,3.26299976]
[1765848806407,3.34,126.22,126.16,3.21]
[1765848807513,3.39232761,126.2,126.18,0.05260931]
[1765848807906,10.52502761,126.2,126.18,0.05260931]
[1765848808207,3.34,126.18,126.13,3.21]
[1765848808407,3.34,126.17,126.13,3.21]
[1765848809203,0.05477765,126.16,126.14,0.0508128]
[1765848809605,10.52937765,126.16,126.14,0.0508128]
[1765848813114,7.1352,126.15,126.14,0.0508128]
[1765848814217,3.29,126.13,126.07,3.21]
[1765848814714,7.1364,126.13,126.08,3.21]
[1765848815312,7.19142523,126.12,126.09,0.0545472]
[1765848815528,3.29,126.11,126.09,0.0545472]
[1765848815821,0.05432523,126.12,126.09,3.2645472]
[1765848816614,0.05432523,126.12,126.09,10.4030472]
[1765848816923,0.05432523,126.12,126.1,3.21]
[1765848823924,3.34432523,126.12,126.09,3.2645472]
[1765848824125,6.05557013,126.11,126.09,3.2645472]
[1765848824322,3.34432523,126.12,126.09,3.2645472]
[1765848824522,3.29,126.1,126.09,0.0545472]
[1765848824718,9.34668393,126.1,126.09,0.0545472]
[1765848824918,6.05668393,126.1,126.09,0.0545472]
[1765848825431,6.05668393,126.1,126.09,0.0545472]
[1765848826431,10.4276,126.11,126.09,0.0545472]
[1765848827632,3.29,126.1,126.09,0.0545472]
[1765848829528,10.428,126.1,126.09,0.0545472]
[1765848829729,3.29,126.11,126.09,0.0545472]
[1765848831232,10.4275,126.11,126.09,0.0545472]
[1765848831531,3.29,126.1,126.09,0.0545472]
[1765848833030,10.428,126.1,126.09,0.0545472]
[1765848833430,3.29,126.09,126.03,3.21]
[1765848833635,67.36,126.13,126.06,3.21]
[1765848833938,70.65,126.13,126.06,3.21]
[1765848834545,70.65,126.13,126.05,111.0773]
[1765848834546,3.34179116,126.11,126.08,3.26049318]
[1765848835039,3.34179116,126.11,126.08,10.39959318]
[1765848836141,0.05179116,126.11,126.09,10.3483]
[1765848837036,0.05179116,126.11,126.1,7.138]
[1765848837626,0.05179116,126.11,126.1,10.348]
[1765848837925,3.34179116,126.11,126.08,0.05049318]
[1765848838129,3.29,126.09,126.08,0.05049318]
[1765848839239,70.65,126.1,126.08,0.05049318]
[1765848839438,3.29,126.1,126.08,0.05049318]
[1765848841142,3.29,126.1,126.08,7.18949318]
[1765848841343,0.05179116,126.11,126.09,3.21]
[1765848842048,0.05179116,126.11,126.1,7.138]
[1765848842740,3.43179116,126.11,126.08,3.15049318]
[1765848842936,0.05179116,126.11,126.08,3.15049318]
[1765848843538,0.05179116,126.11,126.09,10.2385]
[1765848844046,0.05179116,126.11,126.1,3.1]
[1765848844249,9.43028609,126.2,126.13,3.1]
[1765848844439,3.38,126.19,126.14,3.1]
[1765848844749,6.03514017,126.19,126.14,3.1]
[1765848845244,0.05459852,126.18,126.15,3.15463395]
[1765848845940,0.05459852,126.18,126.15,10.28953395]
[1765848846438,3.43459852,126.18,126.15,0.05463395]
[1765848846644,6.03514017,126.17,126.15,0.05463395]
[1765848847447,3.38,126.17,126.15,0.05463395]
[1765848848950,3.38,126.17,126.15,7.18963395]
[1765848851648,3.43459852,126.18,126.15,10.28963395]
[1765848853858,3.43459852,126.18,126.15,7.18963395]
[1765848855053,0.05459852,126.18,126.16,3.1]
[1765848856361,0.05459852,126.18,126.16,10.2346]
[1765848857366,3.43459852,126.18,126.15,0.05463395]
[1765848858568,3.38,126.27,126.21,114.0334]
[1765848858755,3.38,126.3,126.23,3.1]
[1765848858960,3.38,126.3,126.24,3.1]
[1765848859557,0.0569593,126.28,126.26,0.05110744]
[1765848859868,0.0569593,126.28,126.26,10.27990744]
[1765848860661,0.0569593,126.28,126.27,3.1]
[1765848861168,3.38,126.33,126.28,10.2275]
[1765848861371,3.38,126.33,126.29,3.1]
[1765848861674,10.48006207,126.36,126.32,3.1]
[1765848861974,3.38,126.36,126.32,3.1]
[1765848862157,0.05980028,126.35,126.33,0.05425057]
[1765848862666,0.05980028,126.35,126.33,3.15425057]
[1765848864063,0.05980028,126.35,126.33,0.05425057]
[1765848864269,0.05980028,126.35,126.33,3.15425057]
[1765848868974,3.43980028,126.35,126.33,0.05425057]
[1765848869779,3.38,126.33,126.27,3.1]
[1765848870266,3.38,126.31,126.27,3.1]
[1765848870677,0.05407457,126.3,126.28,0.05631615]
[1765848870865,3.43407457,126.3,126.28,0.05631615]
[1765848874675,3.37,126.29,126.22,7.131]
[1765848875374,3.37,126.27,126.21,3.19]
[1765848875977,3.43097992,126.25,126.23,0.05391011]
[1765848879568,10.56077992,126.25,126.23,0.05391011]
[1765848879772,3.37,126.16,126.09,3.19]
[1765848879974,3.37,126.14,126.06,3.19]
[1765848880183,3.37,126.13,126.06,3.19]
[1765848880771,0.05144878,126.11,126.08,0.05890754]
[1765848880970,3.42144878,126.11,126.08,0.05890754]
[1765848882880,3.37,126.09,126.08,0.05890754]
[1765848884578,3.37,126.08,126.03,3.19]
[1765848884979,3.37,126.06,126.0,3.19]
[1765848885382,3.37,126.05,125.98,67.36]
[1765848885589,0.05247911,126.03,126.0,0.05137239]
[1765848885979,3.42247911,126.03,126.0,0.05137239]
[1765848886179,0.05247911,126.03,126.01,3.19]
[1765848887190,3.42247911,126.03,126.0,0.05137239]
[1765848888090,0.05247911,126.03,126.0,3.24137239]
[1765848888497,3.42247911,126.03,126.0,0.05137239]
[1765848888700,0.05247911,126.03,126.0,3.24137239]
[1765848888993,0.05247911,126.03,126.01,3.19]
[1765848889191,0.05247911,126.03,126.01,7.1426]
[1765848889388,0.05247911,126.03,126.02,3.19]
[1765848891785,3.37,126.09,126.02,10.3322]
[1765848891982,3.37,126.09,126.02,3.19]
[1765848892198,3.37,126.09,126.03,3.19]
[1765848892590,3.37,126.09,126.05,3.19]
[1765848892891,3.37,126.07,126.06,0.05702218]
[1765848893197,3.37,126.07,126.05,0.05083082]
[1765848894785,3.37,126.06,126.05,0.05083082]
[1765848896591,0.05290179,126.08,126.05,0.05083082]
[1765848896891,3.37,126.07,126.05,0.05083082]
[1765848898789,10.5099,126.07,126.05,0.05083082]
[1765848898989,3.37,126.07,126.05,0.05083082]
[1765848899703,10.5097,126.07,126.05,0.05083082]
[1765848899905,3.37,126.06,126.05,0.05083082]
[1765848900101,3.37,126.05,125.98,70.61]
[1765848900292,3.37,126.01,125.97,3.19]
[1765848900700,67.38,126.0,125.9,111.2066]
[1765848900999,67.38,126.0,125.94,0.05364642]
[1765848901000,0.05016035,125.96,125.94,0.05364642]
[1765848901803,0.05016035,125.96,125.94,3.24364642]
[1765848902100,3.43016035,125.96,125.94,0.05364642]
[1765848903702,0.05016035,125.96,125.94,0.05364642]
[1765848903899,0.05016035,125.96,125.94,3.39364642]
[1765848904403,0.05016035,125.96,125.94,0.05364642]
[1765848905303,3.43016035,125.96,125.94,0.05364642]
[1765848906203,10.57646035,125.96,125.94,0.05364642]
[1765848907307,3.38,125.95,125.94,0.05364642]
[1765848907507,3.38,125.92,125.88,3.34]
[1765848907693,3.38,125.91,125.85,3.34]
[1765848907897,70.8,125.91,125.85,3.34]
[1765848908103,10.5301,125.89,125.85,3.34]
[1765848908503,0.05835216,125.88,125.86,0.05419948]
[1765848909005,0.05835216,125.88,125.86,3.39419948]
[1765848910004,0.05835216,125.88,125.87,3.34]
[1765848910198,3.38,125.95,125.88,3.34]
[1765848910499,3.38,125.93,125.85,3.34]
[1765848910692,10.5289,125.91,125.85,10.4918]
[1765848911098,0.06073485,125.89,125.87,0.0608294]
[1765848911696,0.06073485,125.89,125.87,3.4008294]
[1765848912900,0.06073485,125.89,125.88,3.34]
[1765848913305,3.38,125.95,125.89,3.34]
[1765848913699,67.44,125.97,125.89,3.34]
[1765848913897,70.82,125.97,125.89,3.34]
[1765848914094,3.38,125.96,125.91,10.4885]
[1765848914299,3.38,125.96,125.92,3.39437349]
[1765848914498,0.0575079,125.95,125.92,3.39437349]
[1765848916397,3.4375079,125.95,125.92,0.05437349]
[1765848916996,7.1473,125.94,125.92,0.05437349]
[1765848917907,3.38,125.93,125.92,0.05437349]
[1765848918296,7.1488,125.91,125.86,10.4913]
[1765848918504,3.38,125.9,125.86,10.4913]
[1765848918797,3.38,125.9,125.87,3.34]
[1765848919609,0.05911923,125.9,125.87,10.54096811]
[1765848920408,3.43911923,125.9,125.87,0.05026811]
[1765848920707,3.38,125.88,125.87,0.05026811]
[1765848920907,3.38,125.87,125.82,3.34]
[1765848921809,3.43008081,125.86,125.83,0.05301499]
[1765848922009,3.38,125.85,125.83,0.05301499]
[1765848922203,0.05008081,125.86,125.83,3.39301499]
[1765848922505,3.38,125.84,125.83,0.05301499]
[1765848922805,3.38,125.82,125.75,3.34]
[1765848923107,3.38,125.79,125.72,70.86]
[1765848923307,3.38,125.79,125.72,78.0193]
[1765848923508,10.5339,125.82,125.74,3.34]
[1765848923811,0.05404959,125.79,125.77,0.05549093]
[1765848924022,3.43404959,125.79,125.77,0.05549093]
[1765848924306,3.43404959,125.79,125.77,3.39549093]
[1765848924307,0.05404959,125.79,125.77,3.39549093]
[1765848924510,0.05404959,125.79,125.77,0.05549093]
[1765848925307,0.05404959,125.79,125.77,3.39549093]
[1765848925507,0.05404959,125.79,125.77,0.05549093]
[1765848926410,0.05404959,125.79,125.77,3.39549093]
[1765848927511,0.05404959,125.79,125.77,0.05549093]
[1765848927706,0.05404959,125.79,125.77,3.39549093]
[1765848928011,0.05404959,125.79,125.78,3.34]
[1765848929115,0.05404959,125.79,125.77,0.05549093]
[1765848929916,0.05404959,125.79,125.77,3.39549093]
[1765848930303,0.05404959,125.79,125.77,0.05549093]
[1765848930705,3.43404959,125.79,125.77,0.05549093]
[1765848931318,0.05404959,125.79,125.77,3.39549093]
[1765848931503,0.00404959,125.79,125.77,4.99549093]
[1765848931708,0.00404959,125.79,125.78,3.33]
[1765848935117,0.00404959,125.79,125.78,4.93]